bitfinex/quotes_BTCUSD_20220211
["timestamp","ask_amount","ask_price","bid_price","bid_amount"]
[1644577788255,0.65484422,43403.0,43402.0,0.08551069]
[1644577788655,0.71247722,43403.0,43402.0,0.08551069]
[1644577789756,0.76247722,43403.0,43402.0,0.08551069]
[1644577790362,0.81247722,43403.0,43402.0,0.08551069]
[1644577790560,1.38072741,43403.0,43402.0,0.08551069]
[1644577790757,1.44211985,43403.0,43402.0,0.05175533]
[1644577790956,1.44211948,43403.0,43402.0,0.05175533]
[1644577791407,1.67423992,43403.0,43402.0,0.04605533]
[1644577791804,1.72423992,43403.0,43402.0,0.04605533]
[1644577792004,1.72423992,43403.0,43402.0,5.533e-05]
[1644577792204,1.49426943,43403.0,43402.0,5.533e-05]
[1644577792405,1.310017,43402.0,43400.0,8.102e-05]
[1644577792605,0.69574602,43401.0,43400.0,8.102e-05]
[1644577792804,0.79574602,43401.0,43400.0,8.102e-05]
[1644577795455,1.09111365,43401.0,43400.0,8.102e-05]
[1644577797658,0.79574602,43401.0,43400.0,8.102e-05]
[1644577801307,0.82984124,43401.0,43400.0,8.102e-05]
[1644577801506,0.79574602,43401.0,43400.0,8.102e-05]
[1644577802768,1.09111414,43401.0,43400.0,8.102e-05]
[1644577802971,0.323843,43401.0,43400.0,8.102e-05]
[1644577803369,0.323843,43401.0,43400.0,0.11531902]
[1644577803370,0.294737,43401.0,43400.0,0.11531902]
[1644577803572,0.06515137,43405.0,43400.0,0.11531902]
[1644577803573,0.00070949,43403.0,43400.0,0.05770002]
[1644577803768,0.00070949,43403.0,43401.0,0.43486263]
[1644577804270,0.00070949,43403.0,43402.0,0.323843]
[1644577804470,0.06515137,43405.0,43401.0,0.55009363]
[1644577804670,0.00070948,43404.0,43401.0,0.55009363]
[1644577805270,0.00070948,43404.0,43402.0,0.62859652]
[1644577805469,0.00070948,43404.0,43403.0,0.381459]
[1644577805670,0.06515137,43405.0,43403.0,0.057616]
[1644577805873,0.06582722,43405.0,43404.0,0.0515]
[1644577806073,0.38967022,43405.0,43404.0,0.0515]
[1644577806803,0.38899437,43405.0,43404.0,0.0515]
[1644577808007,0.38899437,43405.0,43400.0,0.05770002]
[1644577808008,0.38899437,43405.0,43400.0,8.102e-05]
[1644577808209,0.294737,43404.0,43400.0,8.102e-05]
[1644577808806,0.323843,43403.0,43400.0,8.102e-05]
[1644577809208,0.294737,43401.0,43400.0,8.102e-05]
[1644577809409,0.323826,43401.0,43400.0,8.102e-05]
[1644577809811,0.373826,43401.0,43400.0,8.102e-05]
[1644577811066,0.323826,43401.0,43400.0,8.102e-05]
[1644577811667,0.56942587,43401.0,43400.0,8.102e-05]
[1644577811869,1.01942587,43401.0,43400.0,8.102e-05]
[1644577812068,1.01942587,43401.0,43395.0,0.00058262]
[1644577812069,0.9,43399.0,43395.0,0.00058262]
[1644577812269,0.62757374,43396.0,43395.0,0.00058262]
[1644577812667,0.831476,43396.0,43395.0,0.00058262]
[1644577812869,0.831476,43396.0,43392.0,0.09579065]
[1644577812870,0.64810565,43395.0,43392.0,0.09579065]
[1644577813069,0.323826,43394.0,43393.0,0.00058138]
[1644577813718,0.323826,43400.0,43393.0,0.00058138]
[1644577814111,0.323826,43400.0,43396.0,0.06680153]
[1644577814311,0.27134268,43399.0,43396.0,0.06680153]
[1644577814511,0.27134268,43399.0,43394.0,0.00058137]
[1644577814512,0.323826,43398.0,43394.0,0.00058137]
[1644577815311,0.323826,43398.0,43392.0,0.09579065]
[1644577815512,0.323826,43398.0,43394.0,0.08936111]
[1644577816113,0.323826,43398.0,43394.0,0.00058137]
[1644577816517,0.323826,43398.0,43392.0,0.09579065]
[1644577816518,0.57514858,43398.0,43392.0,0.09579065]
[1644577816818,0.57514858,43398.0,43394.0,0.00058159]
[1644577817464,0.62514858,43398.0,43394.0,0.00058159]
[1644577817662,0.323826,43397.0,43392.0,0.09579065]
[1644577817862,0.323826,43397.0,43394.0,0.00058159]
[1644577818465,0.1603164,43396.0,43394.0,0.00058159]
[1644577818666,0.59409348,43395.0,43394.0,0.00058159]
[1644577818862,0.59409348,43395.0,43392.0,0.09579065]
[1644577819064,0.323826,43393.0,43392.0,0.09579065]
[1644577819263,0.373826,43393.0,43392.0,0.09579065]
[1644577820065,0.323826,43393.0,43392.0,0.09579065]
[1644577822005,0.373826,43393.0,43392.0,0.09579065]
[1644577828564,0.431475,43393.0,43392.0,0.09579065]
[1644577828809,0.373826,43393.0,43392.0,0.09579065]
[1644577835058,0.373826,43393.0,43392.0,0.16788347]
[1644577835259,0.323826,43393.0,43392.0,0.16788347]
[1644577836907,0.323826,43393.0,43392.0,0.16778341]
[1644577837706,0.323826,43393.0,43392.0,0.09569059]
[1644577838910,0.323826,43393.0,43392.0,0.16970859]
[1644577839511,0.19684306,43395.0,43392.0,0.16970859]
[1644577839709,0.24684306,43395.0,43392.0,0.16970859]
[1644577840163,0.05764344,43394.0,43392.0,0.16970859]
[1644577841367,0.05,43395.0,43392.0,0.16970859]
[1644577841764,0.05,43397.0,43392.0,0.16970859]
[1644577841967,0.19684306,43398.0,43392.0,0.16970859]
[1644577842171,0.11457699,43401.0,43393.0,0.70294933]
[1644577842172,0.19752005,43401.0,43393.0,0.70294933]
[1644577842371,0.00067699,43401.0,43393.0,0.375373]
[1644577842569,0.00067699,43401.0,43396.0,0.323873]
[1644577842767,0.00067699,43401.0,43398.0,0.323873]
[1644577842970,0.26199443,43405.0,43400.0,0.35175389]
[1644577843169,0.06515137,43405.0,43401.0,0.06463842]
[1644577843567,0.06515137,43405.0,43401.0,0.17987342]
[1644577843824,0.06515137,43405.0,43398.0,0.0515]
[1644577844025,0.19684306,43401.0,43398.0,0.0515]
[1644577844421,0.19684306,43402.0,43398.0,0.0515]
[1644577844622,0.19684306,43401.0,43392.0,0.09569059]
[1644577844821,0.47101094,43400.0,43399.0,0.08825929]
[1644577845020,0.27416788,43400.0,43396.0,0.35479179]
[1644577845224,0.32416788,43400.0,43393.0,0.0515]
[1644577845422,1.90066706,43397.0,43393.0,0.0515]
[1644577845621,1.90066706,43397.0,43395.0,0.00068775]
[1644577846622,1.90066706,43397.0,43394.0,0.07180996]
[1644577846824,1.90066706,43397.0,43394.0,0.07249773]
[1644577847862,1.90066706,43397.0,43394.0,0.07180996]
[1644577849661,1.95066706,43397.0,43394.0,0.07180996]
[1644577852516,1.95066706,43397.0,43392.0,0.09569059]
[1644577852718,2.14751012,43397.0,43393.0,0.00068778]
[1644577853021,0.44839969,43396.0,43393.0,0.00068778]
[1644577853616,0.25448142,43396.0,43393.0,0.00068778]
[1644577853817,0.25448142,43396.0,43392.0,0.09569059]
[1644577854018,0.25448142,43396.0,43392.0,0.09637838]
[1644577854019,0.11528036,43396.0,43392.0,0.09637838]
[1644577854218,0.16528036,43396.0,43392.0,0.09637838]
[1644577854818,0.36212342,43396.0,43395.0,0.08894565]
[1644577855060,0.24684306,43396.0,43395.0,0.08894565]
[1644577855461,2.14751012,43397.0,43395.0,0.08894565]
[1644577855960,0.19684306,43396.0,43395.0,0.08894565]
[1644577856362,2.16594183,43397.0,43395.0,0.08894565]
[1644577856363,2.12358383,43397.0,43395.0,0.08894565]
[1644577856561,0.19688454,43396.0,43395.0,0.08894565]
[1644577857162,0.19688454,43399.0,43396.0,0.323873]
[1644577857362,0.2467983,43401.0,43396.0,0.323873]
[1644577857363,0.19688454,43401.0,43396.0,0.323873]
[1644577857761,0.0007097,43401.0,43396.0,0.323873]
[1644577858164,0.0007097,43401.0,43399.0,0.30864541]
[1644577858363,0.0007097,43401.0,43400.0,0.057624]
[1644577858562,0.19688454,43402.0,43400.0,0.057624]
[1644577858812,0.19688454,43402.0,43399.0,0.36626941]
[1644577859020,0.19759428,43402.0,43399.0,0.36626941]
[1644577859215,0.24759428,43402.0,43399.0,0.36626941]
[1644577859411,0.24759428,43402.0,43399.0,0.42389441]
[1644577859813,0.24688454,43402.0,43399.0,0.42389441]
[1644577861217,0.24688454,43402.0,43399.0,0.36627041]
[1644577862564,0.05,43402.0,43399.0,0.36627041]
[1644577862766,0.24759427,43403.0,43399.0,0.36627041]
[1644577863065,0.24759427,43403.0,43399.0,0.3661795]
[1644577863470,0.24688454,43403.0,43399.0,0.3661795]
[1644577863666,0.24759427,43403.0,43399.0,0.4238015]
[1644577863868,0.00070973,43403.0,43399.0,0.4238015]
[1644577864167,0.00070973,43403.0,43401.0,0.057618]
[1644577864367,0.00070973,43403.0,43402.0,0.323873]
[1644577864667,0.19688454,43407.0,43402.0,0.38843985]
[1644577864869,0.00070973,43404.0,43402.0,0.06456685]
[1644577865068,0.00070973,43404.0,43403.0,0.323873]
[1644577865271,0.00070973,43404.0,43403.0,0.32400612]
[1644577865869,0.24688454,43408.0,43403.0,0.32400612]
[1644577866072,0.24688454,43408.0,43407.0,0.35173021]
[1644577866311,0.24688454,43408.0,43407.0,0.35186333]
[1644577866711,0.05,43408.0,43407.0,0.35186333]
[1644577867113,0.05,43409.0,43407.0,0.35186333]
[1644577867314,0.19746745,43410.0,43407.0,0.35186333]
[1644577867916,0.19746745,43410.0,43409.0,0.08648125]
[1644577868113,0.0007097,43410.0,43409.0,0.08661437]
[1644577868315,0.24675775,43411.0,43409.0,0.08661437]
[1644577868514,0.19675775,43410.0,43409.0,0.00013312]
[1644577869518,0.19675775,43410.0,43409.0,0.31846621]
[1644577869720,0.19675775,43410.0,43409.0,0.31859933]
[1644577869963,0.19675775,43410.0,43409.0,0.00013312]
[1644577871766,0.24701596,43411.0,43409.0,0.00013312]
[1644577872266,0.19675775,43410.0,43409.0,4.179e-05]
[1644577872865,0.19701596,43410.0,43409.0,4.179e-05]
[1644577873716,0.24665687,43412.0,43409.0,4.179e-05]
[1644577873717,0.19701596,43411.0,43409.0,4.179e-05]
[1644577873913,0.19675775,43411.0,43410.0,0.07633042]
[1644577874112,0.19701596,43411.0,43410.0,0.07646354]
[1644577874311,0.19675775,43411.0,43410.0,0.00013312]
[1644577882214,0.00025821,43412.0,43410.0,0.00013312]
[1644577882415,0.29691508,43413.0,43410.0,0.00013312]
[1644577882614,0.00025821,43412.0,43410.0,0.00013312]
[1644577882815,0.05787721,43412.0,43410.0,0.00013312]
[1644577883115,0.00025821,43412.0,43410.0,0.00013312]
[1644577883316,0.24594718,43412.0,43410.0,0.00013312]
[1644577883515,0.24620539,43412.0,43410.0,0.00013312]
[1644577884118,0.30382439,43412.0,43410.0,0.00013312]
[1644577884515,0.24620539,43412.0,43410.0,0.00013312]
[1644577885461,0.29594718,43412.0,43410.0,0.00013312]
[1644577885661,0.29620539,43412.0,43410.0,0.00013312]
[1644577885861,0.24594718,43411.0,43410.0,0.00013312]
[1644577892215,0.24594718,43411.0,43410.0,2.688e-05]
[1644577892460,0.24620539,43411.0,43410.0,0.00016]
[1644577892760,0.24594718,43411.0,43410.0,0.00016]
[1644577892960,0.10787721,43412.0,43410.0,0.00016]
[1644577893362,0.05025821,43412.0,43410.0,0.00016]
[1644577893562,0.00025821,43412.0,43410.0,0.00016]
[1644577893764,0.24596009,43411.0,43410.0,0.00016]
[1644577894167,0.2462183,43412.0,43410.0,0.00016]
[1644577894364,0.19675464,43412.0,43410.0,0.00016]
[1644577894568,0.00025821,43412.0,43411.0,0.323873]
[1644577894764,0.19675464,43415.0,43412.0,0.08445811]
[1644577894965,0.00069586,43413.0,43412.0,0.14219138]
[1644577895264,0.00069586,43413.0,43412.0,0.08459123]
[1644577895464,0.00069586,43413.0,43412.0,0.40846423]
[1644577895866,0.19673388,43415.0,43412.0,0.46606923]
[1644577896065,0.19718972,43415.0,43413.0,0.057605]
[1644577896318,0.19718972,43415.0,43413.0,0.05773812]
[1644577896517,0.3442843,43423.0,43413.0,0.05773812]
[1644577896518,0.24617557,43419.0,43414.0,0.323873]
[1644577896716,0.0690714,43434.0,43415.0,0.0515]
[1644577896717,0.19672088,43418.0,43415.0,0.0515]
[1644577896915,0.1969776,43420.0,43416.0,0.381465]
[1644577897118,0.00025672,43419.0,43418.0,0.381463]
[1644577897315,0.00025672,43422.0,43418.0,0.75436158]
[1644577897515,0.24591736,43424.0,43421.0,0.323873]
[1644577897816,0.42,43428.0,43422.0,0.323873]
[1644577897817,0.24617407,43425.0,43422.0,0.323873]
[1644577898015,0.24617407,43425.0,43423.0,0.057584]
[1644577898215,0.24591736,43425.0,43423.0,0.0577171]
[1644577898417,0.24591736,43425.0,43424.0,0.65493667]
[1644577898616,0.00025671,43427.0,43425.0,0.323873]
[1644577898814,0.66591736,43429.0,43425.0,0.323873]
[1644577898815,0.42025671,43429.0,43427.0,0.323873]
[1644577899015,0.00025671,43428.0,43427.0,0.3240061]
[1644577899215,0.42025671,43429.0,43427.0,0.3240061]
[1644577899417,0.42025671,43429.0,43427.0,0.32362]
[1644577899618,0.00025671,43429.0,43427.0,0.32362]
[1644577900071,0.00025671,43429.0,43428.0,0.3567766]
[1644577900269,0.00094581,43430.0,43428.0,0.7379696]
[1644577900469,0.0006891,43430.0,43429.0,0.6267312]
[1644577900670,0.24591736,43435.0,43429.0,0.6782312]
[1644577900671,0.00025671,43433.0,43429.0,0.6782312]
[1644577900872,0.18924565,43441.0,43430.0,0.057575]
[1644577900873,0.00068909,43431.0,43430.0,0.057575]
[1644577901071,0.00068909,43431.0,43430.0,0.49026943]
[1644577901279,0.00068909,43431.0,43430.0,0.0515]
[1644577901971,0.32362,43432.0,43430.0,0.0515]
[1644577902373,0.32387671,43432.0,43430.0,0.0515]
[1644577903170,0.32387671,43432.0,43428.0,0.057585]
[1644577903471,0.35047099,43429.0,43428.0,0.057585]
[1644577903721,0.24660644,43433.0,43428.0,0.057585]
[1644577903722,0.32387671,43431.0,43428.0,0.057585]
[1644577903915,0.32362,43431.0,43428.0,0.057585]
[1644577904115,0.32387671,43432.0,43428.0,0.057585]
[1644577904315,0.32362,43432.0,43428.0,0.057585]
[1644577904516,0.00134193,43431.0,43428.0,0.057585]
[1644577904718,0.32362,43430.0,43428.0,0.057585]
[1644577904915,0.00025671,43430.0,43428.0,0.115169]
[1644577905116,0.00159864,43431.0,43428.0,0.115169]
[1644577905316,0.00159864,43431.0,43430.0,0.32362]
[1644577905317,0.00134193,43431.0,43430.0,0.32362]
[1644577905518,0.00159876,43431.0,43430.0,0.32362]
[1644577905717,0.00134193,43431.0,43430.0,0.32362]
[1644577906022,0.00134193,43431.0,43430.0,0.57512]
[1644577906217,0.00134193,43431.0,43430.0,0.47512]
[1644577906417,0.00134193,43431.0,43430.0,0.823349]
[1644577907118,0.00134193,43431.0,43430.0,0.923349]
[1644577907323,0.00067586,43433.0,43432.0,0.32362]
[1644577907565,0.00067586,43433.0,43432.0,0.66950045]
[1644577907967,0.43208543,43443.0,43432.0,0.94219845]
[1644577908164,0.19649154,43443.0,43442.0,0.06938245]
[1644577908366,0.19649154,43443.0,43441.0,0.30093232]
[1644577908367,0.52011154,43443.0,43441.0,0.30093232]
[1644577908565,0.50324226,43443.0,43442.0,0.057565]
[1644577908765,0.32362,43443.0,43442.0,0.057565]
[1644577909564,0.32362,43443.0,43441.0,0.35849732]
[1644577909767,0.32362,43442.0,43441.0,0.057565]
[1644577910168,0.32362,43442.0,43438.0,0.0515]
[1644577910368,0.52011154,43442.0,43431.0,0.0515]
[1644577910567,0.19649154,43441.0,43431.0,0.0515]
[1644577910767,0.32362,43440.0,43431.0,0.0515]
[1644577911616,0.19649154,43441.0,43435.0,0.057579]
[1644577911617,0.32362,43439.0,43435.0,0.057579]
[1644577911814,0.00067749,43438.0,43435.0,0.057579]
[1644577912213,0.00067749,43438.0,43434.0,0.02627055]
[1644577912616,0.32362,43439.0,43434.0,0.02627055]
[1644577912813,0.25623343,43438.0,43434.0,0.02627055]
[1644577913014,0.25623343,43438.0,43432.0,0.115157]
[1644577913015,0.32362,43437.0,43432.0,0.115157]
[1644577914217,0.3242975,43437.0,43432.0,0.115157]
[1644577914617,0.5170271,43433.0,43428.0,0.115161]
[1644577914821,0.1934071,43433.0,43428.0,0.115161]
[1644577915064,0.32362,43436.0,43428.0,0.115161]
[1644577915266,0.00067755,43433.0,43428.0,0.115161]
[1644577915663,0.00067755,43433.0,43429.0,0.32362]
[1644577916264,0.32362,43435.0,43429.0,0.08381998]
[1644577916465,0.00067755,43433.0,43429.0,0.14140498]
[1644577916665,0.00067755,43433.0,43430.0,0.32362]
[1644577917564,0.25623343,43438.0,43432.0,0.057583]
[1644577917767,0.00067755,43434.0,43432.0,0.057583]
[1644577918816,0.00025729,43436.0,43432.0,0.057583]
[1644577919016,0.00067783,43435.0,43432.0,0.057583]
[1644577919319,0.00067783,43435.0,43432.0,0.115163]
[1644577919515,0.00067783,43435.0,43433.0,0.32362]
[1644577919716,0.00093512,43435.0,43433.0,0.32362]
[1644577919915,0.1248,43443.0,43433.0,0.62477384]
[1644577919916,0.00025729,43436.0,43433.0,0.62477384]
[1644577920115,0.32362,43441.0,43436.0,0.06852455]
[1644577920321,0.32362,43441.0,43435.0,0.057574]
[1644577920516,0.32387729,43441.0,43435.0,0.057574]
[1644577921117,0.28676801,43436.0,43434.0,0.05]
[1644577921318,0.25749157,43442.0,43434.0,0.107578]
[1644577921319,0.32362,43439.0,43434.0,0.107578]
[1644577921517,0.0009351,43440.0,43434.0,0.107578]
[1644577921518,0.00025729,43436.0,43434.0,0.14086683]
[1644577921719,0.32387729,43439.0,43434.0,0.24843583]
[1644577921917,0.00067781,43440.0,43434.0,0.24843583]
[1644577921918,0.32429781,43440.0,43434.0,0.24843583]
[1644577922118,0.00025729,43439.0,43434.0,0.24843583]
[1644577922318,0.00025729,43440.0,43434.0,0.55221715]
[1644577922564,0.32362,43437.0,43435.0,0.057576]
[1644577922766,0.00068493,43439.0,43436.0,0.32362]
[1644577922966,0.00068493,43439.0,43435.0,0.115148]
[1644577922967,0.00025729,43437.0,43435.0,0.115148]
[1644577923164,0.00068493,43439.0,43436.0,0.32362]
[1644577923365,0.00025729,43438.0,43437.0,0.32362]
[1644577923565,0.00025729,43439.0,43437.0,0.32362]
[1644577923767,0.29335217,43438.0,43435.0,0.057572]
[1644577924164,0.32362,43437.0,43435.0,0.057572]
[1644577924565,0.32387729,43437.0,43435.0,0.057572]
[1644577924766,0.00025729,43437.0,43435.0,0.057572]
[1644577924967,0.32362,43437.0,43435.0,0.057572]
[1644577925166,0.32387729,43437.0,43435.0,0.057572]
[1644577926230,0.00025729,43437.0,43435.0,0.057572]
[1644577926421,0.00067674,43438.0,43436.0,0.32362]
[1644577926623,0.00025729,43437.0,43435.0,0.057572]
[1644577926822,0.00025729,43437.0,43436.0,0.32362]
[1644577927022,0.00025729,43437.0,43435.0,0.057572]
[1644577927222,0.25340636,43442.0,43435.0,0.115149]
[1644577927423,0.00067674,43438.0,43435.0,0.115149]
[1644577927924,0.00067674,43438.0,43437.0,0.32362]
[1644577928227,0.00025729,43441.0,43437.0,0.38119]
[1644577928423,0.00025729,43439.0,43437.0,0.438759]
[1644577928624,0.00067674,43440.0,43437.0,0.438759]
[1644577928825,0.00067674,43440.0,43439.0,0.32362]
[1644577929225,0.00067674,43440.0,43437.0,0.35785686]
[1644577929426,0.00067674,43440.0,43439.0,0.32362]
[1644577929728,0.00093522,43442.0,43440.0,0.06930239]
[1644577929964,0.32362,43441.0,43440.0,0.06930239]
[1644577930165,0.00067793,43442.0,43440.0,0.06930239]
[1644577930166,0.32429793,43442.0,43440.0,0.06930239]
[1644577930768,0.32362,43442.0,43440.0,0.06930239]
[1644577930968,0.0002575,43443.0,43441.0,0.4034629]
[1644577930969,0.00093542,43443.0,43441.0,0.4034629]
[1644577931168,0.00067792,43443.0,43441.0,0.5110289]
[1644577931368,0.00093542,43443.0,43441.0,0.5110289]
[1644577932066,0.0002575,43443.0,43441.0,0.5110289]
[1644577932266,0.02,43444.0,43442.0,0.17269021]
[1644577932267,0.02050455,43444.0,43442.0,0.17269021]
[1644577932867,0.02050455,43444.0,43443.0,0.32362]
[1644577933167,0.02025798,43444.0,43441.0,0.5685879]
[1644577933371,0.02,43444.0,43442.0,0.32362]
[1644577933569,0.02,43444.0,43442.0,0.057562]
[1644577933814,0.32362,43443.0,43442.0,0.057562]
[1644577937465,0.32362,43443.0,43442.0,0.115131]
[1644577939867,0.52011154,43443.0,43442.0,0.115131]
[1644577940067,0.32362,43443.0,43442.0,0.115131]
[1644577940666,0.26617534,43444.0,43442.0,0.115131]
[1644577940867,0.02025798,43444.0,43442.0,0.17269386]
[1644577941515,0.1965413,43443.0,43442.0,0.17269386]
[1644577941719,0.02025798,43444.0,43442.0,0.17269386]
[1644577941720,0.02025798,43444.0,43442.0,0.22269386]
[1644577945073,0.21679928,43444.0,43442.0,0.22269386]
[1644577945472,0.2165413,43444.0,43442.0,0.22269386]
[1644577945673,0.21679928,43444.0,43442.0,0.22269386]
[1644577945974,0.21679928,43444.0,43442.0,0.165131]
[1644577946576,0.2165413,43444.0,43442.0,0.165131]
[1644577946774,0.32362,43443.0,43442.0,0.165131]
[1644577946976,0.32362,43443.0,43433.0,0.5]
[1644577946977,0.77115518,43443.0,43433.0,0.5]
[1644577947176,0.77115518,43443.0,43425.0,0.7896]
[1644577947177,0.24008824,43438.0,43425.0,0.7896]
[1644577947375,0.24008824,43438.0,43421.0,0.230274]
[1644577947376,0.3,43437.0,43426.0,0.82362]
[1644577947576,0.3,43437.0,43426.0,0.5]
[1644577947777,0.3,43437.0,43428.0,0.34308547]
[1644577947778,0.57446812,43437.0,43428.0,0.34308547]
[1644577947977,0.00025798,43437.0,43435.0,0.08112777]
[1644577948179,0.00025798,43439.0,43435.0,0.13870377]
[1644577948475,0.32362,43439.0,43435.0,0.13870377]
[1644577948725,0.00025798,43439.0,43435.0,0.18870377]
[1644577948914,0.4965635,43440.0,43436.0,0.29969891]
[1644577948915,0.19682148,43440.0,43436.0,0.29969891]
[1644577949116,0.32459051,43439.0,43436.0,0.41484591]
[1644577949315,0.32433253,43439.0,43436.0,0.057573]
[1644577949516,0.1965635,43438.0,43436.0,0.057573]
[1644577949714,0.19682148,43438.0,43436.0,0.057573]
[1644577949914,0.52044148,43438.0,43436.0,0.057573]
[1644577950317,0.1965635,43437.0,43436.0,0.057573]
[1644577950519,0.1965635,43437.0,43436.0,0.115148]
[1644577951718,0.1965635,43437.0,43436.0,0.41389862]
[1644577952318,0.1965635,43437.0,43436.0,0.115148]
[1644577952567,0.1965635,43437.0,43436.0,0.057573]
[1644577953063,0.32387798,43438.0,43436.0,0.057573]
[1644577953064,0.19682148,43438.0,43436.0,0.057573]
[1644577953265,0.52044148,43438.0,43436.0,0.05746235]
[1644577953766,0.52044148,43438.0,43436.0,0.11503835]
[1644577953965,0.5201835,43438.0,43436.0,0.11503835]
[1644577954164,0.19682148,43438.0,43436.0,0.11503835]
[1644577955064,0.5201835,43438.0,43436.0,0.11503835]
[1644577955267,0.52044148,43438.0,43436.0,0.11503835]
[1644577955666,0.19682148,43438.0,43436.0,0.11503835]
[1644577956226,0.00097051,43439.0,43437.0,0.057568]
[1644577956413,0.00071253,43439.0,43437.0,0.057568]
[1644577956614,0.00097051,43439.0,43438.0,0.06410251]
[1644577956816,0.00071253,43439.0,43438.0,0.06410251]
[1644577957118,0.00071253,43439.0,43438.0,0.43262367]
[1644577957316,0.1965635,43440.0,43439.0,0.381189]
[1644577957517,0.19682148,43440.0,43439.0,0.057569]
[1644577957717,0.19727603,43441.0,43439.0,0.057569]
[1644577958318,0.00071253,43441.0,43439.0,0.057569]
[1644577958518,0.1965635,43442.0,43439.0,0.11513776]
[1644577958718,0.00025798,43441.0,43440.0,0.05]
[1644577958918,0.00076151,43442.0,43440.0,0.69686074]
[1644577959218,0.00076151,43442.0,43441.0,0.32362]
[1644577959518,0.00050353,43442.0,43441.0,0.32362]
[1644577959722,0.00025798,43443.0,43441.0,0.107562]
[1644577959961,0.21732501,43444.0,43442.0,0.323542]
[1644577960163,0.00025798,43443.0,43441.0,0.05]
[1644577960366,0.21706703,43444.0,43442.0,0.62871821]
[1644577960565,0.00025798,43443.0,43442.0,0.323542]
[1644577960763,0.21682148,43444.0,43442.0,0.38110505]
[1644577960963,0.21682148,43444.0,43443.0,0.438659]
[1644577960964,0.02,43444.0,43443.0,0.438659]
[1644577961166,0.21660018,43444.0,43443.0,0.438659]
[1644577961371,0.02,43444.0,43443.0,0.165117]
[1644577961564,0.21659802,43444.0,43443.0,0.165117]
[1644577961765,0.02,43444.0,43443.0,0.165117]
[1644577962165,0.02,43444.0,43443.0,0.488659]
[1644577962370,0.21660152,43444.0,43443.0,0.488659]
[1644577962970,0.02,43444.0,43443.0,0.488659]
[1644577963168,0.21653558,43444.0,43443.0,0.488659]
[1644577963813,0.019928,43444.0,43443.0,0.488659]
[1644577966413,0.21654153,43444.0,43443.0,0.488659]
[1644577967864,0.019928,43444.0,43443.0,0.488659]
[1644577968265,0.21654299,43444.0,43443.0,0.488659]
[1644577968866,0.21298787,43444.0,43443.0,0.488659]
[1644577969066,0.20498624,43444.0,43443.0,0.488659]
[1644577969265,0.00837125,43444.0,43443.0,0.488659]
[1644577972219,0.25412147,43444.0,43443.0,0.05]
[1644577972418,0.00837125,43444.0,43441.0,0.115139]
[1644577972619,0.25443803,43444.0,43441.0,0.05757]
[1644577972822,0.25417859,43444.0,43441.0,0.05757]
[1644577973221,0.24580734,43443.0,43441.0,0.05757]
[1644577973421,0.24606678,43443.0,43441.0,0.05757]
[1644577973822,0.24606678,43443.0,43441.0,0.115138]
[1644577974223,0.323542,43442.0,43441.0,0.115138]
[1644577974723,0.55679809,43443.0,43441.0,0.05757]
[1644577974969,0.323542,43442.0,43441.0,0.17270356]
[1644577975169,0.52018849,43442.0,43441.0,0.115137]
[1644577975374,0.24606678,43443.0,43441.0,0.05757]
[1644577975568,0.56934934,43442.0,43441.0,0.05757]
[1644577975969,0.82972995,43442.0,43441.0,0.05757]
[1644577976168,0.50618795,43442.0,43441.0,0.05757]
[1644577976369,0.00025944,43443.0,43441.0,0.381112]
[1644577976569,0.25417859,43444.0,43443.0,0.13170107]
[1644577976769,0.57840101,43444.0,43443.0,0.13170107]
[1644577976970,0.57840101,43444.0,43443.0,0.057564]
[1644577977270,0.25485901,43444.0,43443.0,0.42814627]
[1644577977670,0.00837125,43444.0,43443.0,0.75168827]
[1644577979120,0.00837125,43444.0,43443.0,0.83420147]
[1644577979619,0.00837125,43444.0,43443.0,1.05168827]
[1644577979819,0.00837125,43444.0,43443.0,0.72814627]
[1644577980322,0.33191325,43444.0,43443.0,0.72814627]
[1644577980820,0.33191325,43444.0,43443.0,0.357564]
[1644577981021,0.57772059,43444.0,43443.0,0.357564]
[1644577981422,0.91837122,43444.0,43443.0,0.357564]
[1644577981821,0.91837122,43444.0,43443.0,0.3576613]
[1644577982467,0.57772059,43444.0,43443.0,0.3576613]
[1644577985871,0.57772059,43444.0,43443.0,0.7312033]
[1644577985872,0.00837125,43444.0,43443.0,0.7312033]
[1644577986071,0.00837125,43444.0,43443.0,0.7827033]
[1644577986728,0.00837125,43444.0,43443.0,1.04294133]
[1644577987126,0.00025944,43445.0,43444.0,0.43864]
[1644577987328,0.00025944,43446.0,43445.0,0.323542]
[1644577987626,0.05,43447.0,43446.0,0.05755]
[1644577987826,0.05,43447.0,43446.0,0.3811893]
[1644577988626,0.05,43447.0,43446.0,0.68911911]
[1644577989726,0.05,43447.0,43446.0,0.323522]
[1644577990371,0.05,43447.0,43446.0,0.381072]
[1644577992472,0.05,43447.0,43446.0,0.482572]
[1644577992673,0.05,43447.0,43446.0,0.582572]
[1644577992872,0.05,43447.0,43446.0,0.632572]
[1644577993275,0.05,43447.0,43446.0,0.81616296]
[1644577994119,0.3028516,43456.0,43449.0,0.05753365]
[1644577994320,0.0028516,43456.0,43451.0,0.057533]
[1644577994519,0.3,43457.0,43452.0,0.0515]
[1644577994520,0.30025959,43457.0,43452.0,0.0515]
[1644577994718,0.00025959,43456.0,43452.0,0.0515973]
[1644577994918,1.8954,43458.0,43452.0,0.0515973]
[1644577994919,0.00025959,43457.0,43452.0,0.0515973]
[1644577995119,0.00025959,43457.0,43453.0,0.28467922]
[1644577995319,0.00025959,43457.0,43455.0,0.323522]
[1644577995519,1.89565959,43458.0,43457.0,0.08466288]
[1644577995719,1.8954,43458.0,43457.0,0.13626018]
[1644577997220,1.8954,43458.0,43457.0,0.19379918]
[1644577998469,1.8954,43458.0,43457.0,0.51732118]
[1644577999269,1.8954,43458.0,43457.0,0.61732118]
[1644578008472,1.8954,43458.0,43457.0,0.29379918]
[1644578008730,1.8954,43458.0,43457.0,0.19379918]
[1644578010523,1.8954,43458.0,43457.0,0.51732118]
[1644578010727,1.8954,43458.0,43457.0,0.56732118]
[1644578011525,1.8954,43458.0,43457.0,0.24379918]
[1644578012225,1.8954,43458.0,43457.0,0.19229918]
[1644578013772,1.8954,43458.0,43457.0,0.51582118]
[1644578014773,1.86917448,43458.0,43457.0,0.51582118]
[1644578015575,1.86917448,43458.0,43457.0,0.19229918]
[1644578015774,1.86917448,43458.0,43457.0,0.29229918]
[1644578015975,1.86917448,43458.0,43457.0,0.61582118]
[1644578016227,1.86917448,43458.0,43457.0,0.90576939]
[1644578016423,1.86917448,43458.0,43457.0,0.98131939]